fUST/lending_fUST_20240714
["ID","MTS","AMOUNT","RATE_DAILY","PERIOD"]
[331960252,1720900242597,-500.0,0.00024657,2]
[331960254,1720900242606,-500.0,0.00024657,2]
[331960256,1720900242615,-589.53099683,0.00024657,2]
[331960258,1720900242625,-500.0,0.00024657,2]
[331960260,1720900242635,-500.0,0.00024657,2]
[331960262,1720900242645,-500.0,0.00024657,2]
[331960264,1720900242654,-500.0,0.00024657,2]
[331960266,1720900242663,-500.0,0.00024657,2]
[331960268,1720900242672,-186.46481003,0.00024657,2]
[331960270,1720900242681,-500.0,0.00024657,2]
[331960272,1720900242690,-500.0,0.00024657,2]
[331960274,1720900242700,-500.0,0.00024657,2]
[331960276,1720900242709,-500.0,0.00024657,2]
[331960278,1720900242719,-500.0,0.00024657,2]
[331960280,1720900242728,-500.0,0.00024657,2]
[331960282,1720900242737,-616.37,0.00024657,2]
[331960284,1720900242746,-500.0,0.00024657,2]
[331960286,1720900242756,-503.60908765,0.00024657,2]
[331960288,1720900242769,-501.4063897,0.00024657,2]
[331960290,1720900242779,-500.0,0.00024657,2]
[331960292,1720900242788,-502.38974762,0.00024657,2]
[331960294,1720900242797,-500.0,0.00024657,2]
[331960296,1720900242807,-500.0,0.00024657,2]
[331960298,1720900242817,-500.0,0.00024657,2]
[331960300,1720900242827,-500.0,0.00024657,2]
[331960302,1720900242836,-500.0,0.00024657,2]
[331960304,1720900242845,-500.0,0.00024657,2]
[331960306,1720900242855,-500.0,0.00024657,2]
[331960308,1720900242864,-500.0,0.00024657,2]
[331960310,1720900242873,-500.0,0.00024657,2]
[331960312,1720900242882,-500.0,0.00024657,2]
[331960314,1720900242891,-500.0,0.00024657,2]
[331960316,1720900242900,-500.0,0.00024657,2]
[331960318,1720900242909,-500.0,0.00024657,2]
[331960320,1720900242919,-507.16,0.00024657,2]
[331960322,1720900242928,-500.0,0.00024657,2]
[331960323,1720900242938,-508.35822398,0.00024657,2]
[331960325,1720900242947,-500.0,0.00024657,2]
[331960327,1720900242956,-500.0,0.00024657,2]
[331960329,1720900242966,-522.88917928,0.00024657,2]
[331960331,1720900242976,-500.0,0.00024657,2]
[331960333,1720900242985,-500.0,0.00024657,2]
[331960335,1720900242994,-500.0,0.00024657,2]
[331960337,1720900243003,-500.0,0.00024657,2]
[331960339,1720900243012,-500.0,0.00024657,2]
[331960340,1720900243021,-281.36419801,0.00024657,2]
[331960342,1720900243031,-500.0,0.00024657,2]
[331960344,1720900243040,-500.0,0.00024657,2]
[331960346,1720900243049,-500.0,0.00024658,2]
[331960348,1720900243057,-500.0,0.00024658,2]
[331960350,1720900243067,-500.0,0.00024658,2]
[331960352,1720900243076,-500.0,0.00024658,2]
[331960354,1720900243085,-500.0,0.00024658,2]
[331960355,1720900243094,-500.0,0.00024658,2]
[331960356,1720900243104,-500.0,0.00024658,2]
[331960357,1720900243113,-500.0,0.00024658,2]
[331960358,1720900243122,-500.0,0.00024658,2]
[331960359,1720900243131,-500.0,0.00024658,2]
[331960360,1720900243140,-500.0,0.00024658,2]
[331960362,1720900243149,-500.0,0.00024658,2]
[331960365,1720900243158,-500.0,0.00024658,2]
[331960367,1720900243168,-228.27412486,0.00024658,2]
[331960369,1720900243177,-167.5788304,0.0002469,2]
[331960371,1720900243186,-17195.63792315,0.0002469,2]
[331960372,1720900243196,-4147.02586181,0.00024831,2]
[331960374,1720900243205,-22875.6150644,0.00024919,3]
[331960383,1720900243285,-17828.40595726,0.00024921,3]
[331960384,1720900243307,-597.95259703,0.00024921,3]
[331960392,1720900243434,-1297.7776235,0.00024921,3]
[331960393,1720900243599,905.07891066,0.00023453,2]
[331960394,1720900243879,-178.671075,0.00024481,7]
[331960395,1720900243889,-3151.47888661,0.00024921,3]
[331960396,1720900243898,-13944.34509484,0.00024931,5]
[331960397,1720900243908,-531.25,0.00024931,2]
[331960398,1720900243917,-183.38071513,0.00024931,2]
[331960399,1720900243927,-500.0,0.00024931,2]
[331960400,1720900243936,-624.10402067,0.00024931,2]
[331960401,1720900243946,-500.0,0.00024931,2]
[331960402,1720900243956,-500.0,0.00024931,2]
[331960403,1720900243965,-502.32846549,0.00024931,2]
[331960404,1720900243978,-506.45153383,0.00024931,2]
[331960405,1720900243987,-500.0,0.00024931,2]
[331960406,1720900243996,-478.41460563,0.00024931,2]
[331960407,1720900244008,-500.0,0.00024931,2]
[331960408,1720900244017,-500.0,0.00024931,2]
[331960409,1720900244026,-221.91,0.00024931,2]
[331960410,1720900244035,-273.67406506,0.00024931,2]
[331960411,1720900244044,-500.0,0.00024931,2]
[331960412,1720900244053,-500.0,0.00024931,2]
[331960414,1720900244062,-500.0,0.00024931,2]
[331960416,1720900244072,-500.0,0.00024931,2]
[331960418,1720900244082,-500.0,0.00024931,2]
[331960420,1720900244092,-500.0,0.00024931,2]
[331960421,1720900244102,-500.0,0.00024931,2]
[331960422,1720900244112,-500.0,0.00024931,2]
[331960423,1720900244121,-514.88855043,0.00024931,2]
[331960424,1720900244130,-500.0,0.00024931,2]
[331960425,1720900244140,-354.68062276,0.00024931,2]
[331960426,1720900244149,-500.0,0.00024931,2]
[331960427,1720900244161,-500.0,0.00024931,2]
[331960428,1720900244176,-500.0,0.00024931,2]
[331960429,1720900244190,-500.0,0.00024931,2]
[331960430,1720900244205,-500.0,0.00024931,2]
[331960431,1720900244217,-500.0,0.00024931,2]
[331960432,1720900244230,-500.0,0.00024931,2]
[331960433,1720900244243,-350.49959546,0.00024931,2]
[331960434,1720900244257,-500.0,0.00024931,2]
[331960435,1720900244271,-500.0,0.00024931,2]
[331960436,1720900244285,-500.0,0.00024931,2]
[331960437,1720900244299,-500.0,0.00024931,2]
[331960438,1720900244313,-500.0,0.00024931,2]
[331960439,1720900244327,-500.0,0.00024931,2]
[331960440,1720900244340,-500.0,0.00024931,2]
[331960441,1720900244352,-500.0,0.00024931,2]
[331960442,1720900244368,-500.0,0.00024931,2]
[331960443,1720900244381,-500.0,0.00024931,2]
[331960444,1720900244395,-617.38,0.00024931,2]
[331960445,1720900244406,-500.0,0.00024931,2]
[331960446,1720900244417,-500.0,0.00024931,2]
[331960447,1720900244431,-500.0,0.00024931,2]
[331960448,1720900244444,-500.0,0.00024931,2]
[331960449,1720900244457,-559.76,0.00024931,2]
[331960450,1720900244471,-500.0,0.00024931,2]
[331960451,1720900244487,-500.0,0.00024931,2]
[331960452,1720900244501,-500.0,0.00024931,2]
[331960453,1720900244515,-500.0,0.00024931,2]
[331960456,1720900244528,-500.0,0.00024931,2]
[331960458,1720900244538,-500.0,0.00024931,2]
[331960460,1720900244548,-500.0,0.00024931,2]
[331960462,1720900244560,-500.0,0.00024931,2]
[331960465,1720900244573,-500.0,0.00024931,2]
[331960467,1720900244587,-500.0,0.00024931,2]
[331960470,1720900244601,-500.0,0.00024931,2]
[331960472,1720900244612,-520.64622132,0.00024931,2]
[331960474,1720900244625,-500.0,0.00024931,2]
[331960476,1720900244636,-501.11581979,0.00024931,2]
[331960478,1720900244649,-500.0,0.00024931,2]
[331960481,1720900244662,-500.0,0.00024931,2]
[331960483,1720900244673,-500.0,0.00024931,2]
[331960485,1720900244685,-500.0,0.00024931,2]
[331960487,1720900244697,-500.0,0.00024931,2]
[331960490,1720900244709,-500.0,0.00024931,2]
[331960492,1720900244725,-500.0,0.00024931,2]
[331960494,1720900244738,-500.0,0.00024931,2]
[331960496,1720900244750,-533.2368267,0.00024931,2]
[331960498,1720900244765,-500.0,0.00024931,2]
[331960500,1720900244777,-500.0,0.00024931,2]
[331960502,1720900244789,-508.98,0.00024931,2]
[331960505,1720900244800,-303.4484443,0.00024931,2]
[331960507,1720900244814,-500.0,0.00024931,2]
[331960509,1720900244825,-341.0241287,0.00024931,2]
[331960511,1720900244838,-500.0,0.00024931,2]
[331960514,1720900244851,-500.0,0.00024931,2]
[331960516,1720900244863,-500.0,0.00024931,2]
[331960518,1720900244874,-500.0,0.00024931,2]
[331960520,1720900244886,-461.36257718,0.00024931,2]
[331960522,1720900244898,-500.0,0.00024931,2]
[331960524,1720900244909,-458.20060027,0.00024931,2]
[331960526,1720900244920,-516.62501992,0.00024931,2]
[331960528,1720900244932,-500.0,0.00024931,2]
[331960529,1720900244943,-500.0,0.00024931,2]
[331960530,1720900244956,-500.0,0.00024931,2]
[331960531,1720900244967,-500.0,0.00024931,2]
[331960532,1720900244985,-394.17672297,0.00024931,2]
[331960533,1720900244997,-500.0,0.00024931,2]
[331960534,1720900245008,-178.53895088,0.00024931,2]
[331960535,1720900245020,-500.0,0.00024931,2]
[331960536,1720900245031,-500.0,0.00024931,2]
[331960537,1720900245042,-500.0,0.00024931,2]
[331960538,1720900245051,-500.0,0.00024931,2]
[331960539,1720900245061,-500.0,0.00024931,2]
[331960540,1720900245070,-500.0,0.00024931,2]
[331960541,1720900245080,-500.0,0.00024931,2]
[331960542,1720900245090,-500.0,0.00024931,2]
[331960543,1720900245099,-500.0,0.00024931,2]
[331960544,1720900245109,-500.0,0.00024931,2]
[331960545,1720900245118,-500.0,0.00024931,2]
[331960546,1720900245128,-500.0,0.00024931,2]
[331960547,1720900245137,-1021.18,0.00024931,2]
[331960548,1720900245147,-500.0,0.00024931,2]
[331960549,1720900245156,-500.0,0.00024931,2]
[331960550,1720900245166,-500.0,0.00024931,2]
[331960551,1720900245175,-500.0,0.00024931,2]
[331960552,1720900245313,-500.0,0.00024931,2]
[331960553,1720900245326,-500.0,0.00024931,2]
[331960554,1720900245336,-1500.0,0.00024931,2]
[331960555,1720900245346,-500.0,0.00024931,2]
[331960556,1720900245355,-500.0,0.00024931,2]
[331960557,1720900245364,-500.0,0.00024931,2]
[331960558,1720900245373,-503.06028341,0.00024931,2]
[331960559,1720900245384,-502.77136037,0.00024931,2]
[331960560,1720900245393,-608.33674964,0.00024931,2]
[331960561,1720900245403,-500.0,0.00024931,2]
[331960562,1720900245412,-500.0,0.00024931,2]
[331960563,1720900245422,-500.0,0.00024931,2]
[331960564,1720900245431,-500.0,0.00024931,2]
[331960565,1720900245440,-500.0,0.00024931,2]
[331960566,1720900245451,-500.0,0.00024931,2]
[331960567,1720900245460,-500.0,0.00024931,2]
[331960568,1720900245470,-500.0,0.00024931,2]
[331960569,1720900245482,-500.0,0.00024931,2]
[331960570,1720900245493,-1948.32,0.00024931,2]
[331960571,1720900245503,-559.60509344,0.00024931,2]
[331960572,1720900245512,-500.0,0.00024931,2]
[331960573,1720900245522,-500.0,0.00024931,2]
[331960574,1720900245531,-500.0,0.00024931,2]
[331960575,1720900245541,-500.0,0.00024931,2]
[331960576,1720900245551,-503.38008836,0.00024931,2]
[331960577,1720900245561,-200.0,0.00024931,2]
[331960578,1720900245570,-563.40883219,0.00024931,2]
[331960579,1720900245580,-500.0,0.00024931,2]
[331960580,1720900245590,-500.0,0.00024931,2]
[331960581,1720900245599,-501.07,0.00024931,2]
[331960582,1720900245609,-522.41337688,0.00024931,2]
[331960583,1720900245618,-500.0,0.00024931,2]
[331960584,1720900245627,-500.0,0.00024931,2]
[331960585,1720900245637,-500.0,0.00024931,2]
[331960586,1720900245646,-500.0,0.00024931,2]
[331960587,1720900245656,-500.0,0.00024931,2]
[331960588,1720900245665,-500.0,0.00024931,2]
[331960589,1720900245674,-500.0,0.00024931,2]
[331960590,1720900245683,-583.69,0.00024931,2]
[331960591,1720900245693,-508.57441733,0.00024931,2]
[331960592,1720900245702,-500.0,0.00024931,2]
[331960593,1720900245711,-500.0,0.00024931,2]
[331960594,1720900245721,-11293.65,0.00024931,2]
[331960595,1720900245731,-500.0,0.00024931,2]
[331960596,1720900245741,-500.0,0.00024931,2]
[331960597,1720900245751,-500.0,0.00024931,2]
[331960598,1720900245765,-500.0,0.00024931,2]
[331960599,1720900245775,-500.0,0.00024931,2]
[331960600,1720900245784,-500.0,0.00024931,2]
[331960601,1720900245793,-500.0,0.00024931,2]
[331960602,1720900245804,-505.83248446,0.00024931,2]
[331960603,1720900245814,-500.0,0.00024931,2]
[331960604,1720900245824,-500.0,0.00024931,2]
[331960605,1720900245835,-500.0,0.00024931,2]
[331960606,1720900245844,-500.0,0.00024931,2]
[331960607,1720900245855,-1893.12,0.00024931,2]
[331960608,1720900245865,-500.0,0.00024931,2]
[331960609,1720900245875,-500.0,0.00024931,2]
[331960610,1720900245885,-500.0,0.00024931,2]
[331960611,1720900245894,-500.0,0.00024931,2]
[331960612,1720900245904,-151.0,0.00024931,7]
[331960613,1720900245914,-500.0,0.00024931,2]
[331960614,1720900245923,-500.0,0.00024931,2]
[331960615,1720900245933,-364.79474992,0.00024931,2]
[331960616,1720900245942,-500.0,0.00024931,2]
[331960617,1720900245952,-500.0,0.00024931,2]
[331960618,1720900245962,-500.0,0.00024931,2]
[331960619,1720900245973,-602.44590314,0.00024931,2]
[331960620,1720900245983,-500.0,0.00024931,2]
[331960621,1720900245992,-856.41,0.00024931,2]
[331960622,1720900246003,-500.0,0.00024931,2]
[331960623,1720900246012,-500.0,0.00024931,2]
[331960624,1720900246022,-500.0,0.00024931,2]
[331960625,1720900246032,-503.32332182,0.00024931,2]
[331960626,1720900246041,-500.0,0.00024931,2]
[331960627,1720900246051,-545.835666,0.00024931,7]
[331960628,1720900246061,-500.0,0.00024931,2]
[331960629,1720900246070,-500.0,0.00024931,2]
[331960630,1720900246079,-500.0,0.00024931,2]
[331960631,1720900246089,-545.835666,0.00024931,7]
[331960632,1720900246097,-232.41212575,0.00024931,2]
[331960633,1720900246107,-696.142005,0.00024931,7]
[331960634,1720900246116,-500.0,0.00024931,2]
[331960635,1720900246125,-502.75939391,0.00024931,2]
[331960637,1720900246135,-616.37,0.00024931,2]
[331960638,1720900246144,-696.142005,0.00024931,7]
[331960640,1720900246154,-506.91765689,0.00024931,2]
[331960642,1720900246162,-500.0,0.00024931,2]
[331960643,1720900246171,-500.0,0.00024931,2]
[331960644,1720900246181,-500.0,0.00024931,2]
[331960645,1720900246191,-500.0,0.00024931,2]
[331960646,1720900246200,-500.0,0.00024931,2]
[331960647,1720900246210,-500.0,0.00024931,2]
[331960648,1720900246219,-500.0,0.00024931,2]
[331960649,1720900246231,-861.18964,0.00024931,7]
[331960650,1720900246242,-500.0,0.00024931,2]
[331960651,1720900246251,-500.0,0.00024931,2]
[331960652,1720900246261,-861.18964,0.00024931,7]
[331960653,1720900246271,-500.0,0.00024931,2]
[331960654,1720900246281,-500.0,0.00024931,2]
[331960655,1720900246291,-500.0,0.00024931,2]
[331960656,1720900246301,-514.15753066,0.00024931,2]
[331960657,1720900246310,-302.926709,0.00024931,7]
[331960658,1720900246321,-500.0,0.00024931,2]
[331960659,1720900246330,-302.926709,0.00024931,7]
[331960660,1720900246340,-5181.91568065,0.0002494,2]
[331960661,1720900246349,-150.0,0.00025018,2]
[331960662,1720900246359,-357.01441578,0.00025111,2]
[331960663,1720900246368,-441.04727659,0.00025204,2]
[331960664,1720900246378,-500.0,0.00025205,2]
[331960665,1720900246387,-344.52118819,0.00025205,2]
[331960666,1720900246396,-500.0,0.00025205,2]
[331960667,1720900246405,-500.0,0.00025205,2]
[331960669,1720900246415,-500.0,0.00025205,2]
[331960670,1720900246424,-500.0,0.00025205,2]
[331960671,1720900246434,-500.0,0.00025205,2]
[331960672,1720900246443,-554.01750496,0.00025205,2]
[331960673,1720900246453,-500.0,0.00025205,2]
[331960674,1720900246463,-500.0,0.00025205,2]
[331960675,1720900246473,-500.0,0.00025205,2]
[331960676,1720900246483,-500.0,0.00025205,2]
[331960677,1720900246493,-500.0,0.00025205,2]
[331960678,1720900246503,-500.0,0.00025205,2]
[331960679,1720900246514,-500.0,0.00025205,2]
[331960681,1720900246524,-500.0,0.00025205,2]
[331960682,1720900246534,-500.0,0.00025205,2]
[331960683,1720900246545,-500.0,0.00025205,2]
[331960684,1720900246555,-500.0,0.00025205,2]
[331960685,1720900246564,-500.0,0.00025205,2]
[331960686,1720900246574,-617.38,0.00025205,2]
[331960687,1720900246584,-215.97,0.00025205,2]
[331960688,1720900246594,-500.0,0.00025205,2]
[331960689,1720900246603,-500.0,0.00025205,2]
[331960690,1720900246612,-629.55,0.00025205,2]
[331960691,1720900246623,-500.0,0.00025205,2]
[331960692,1720900246633,-321.32440708,0.00025205,2]
[331960693,1720900246643,-500.0,0.00025205,2]
[331960694,1720900246652,-500.0,0.00025205,2]
[331960695,1720900246663,-500.0,0.00025205,2]
[331960696,1720900246672,-500.0,0.00025205,2]
[331960697,1720900246682,-507.62153835,0.00025205,2]
[331960698,1720900246691,-519.79439589,0.00025205,2]
[331960699,1720900246701,-500.0,0.00025205,2]
[331960700,1720900246711,-500.0,0.00025205,2]
[331960701,1720900246721,-518.0647578,0.00025205,2]
[331960702,1720900246731,-500.0,0.00025205,2]
[331960704,1720900246740,-500.0,0.00025205,2]
[331960705,1720900246750,-165.5,0.00025205,2]
[331960706,1720900246764,-534.88,0.00025205,2]
[331960707,1720900246773,-500.0,0.00025205,2]
[331960708,1720900246783,-500.0,0.00025205,2]
[331960709,1720900246792,-500.0,0.00025205,2]
[331960710,1720900246803,-500.0,0.00025205,2]
[331960711,1720900246813,-500.0,0.00025205,2]
[331960712,1720900246823,-500.0,0.00025205,2]
[331960713,1720900246834,-641.87214477,0.00025205,2]
[331960714,1720900246847,-500.0,0.00025205,2]
[331960715,1720900246857,-633.58551696,0.00025205,2]
[331960716,1720900246867,-500.0,0.00025205,2]
[331960717,1720900246876,-500.0,0.00025205,2]
[331960718,1720900246887,-1021.18,0.00025205,2]
[331960719,1720900246897,-500.0,0.00025205,2]
[331960720,1720900246906,-500.0,0.00025205,2]
[331960721,1720900246915,-500.0,0.00025205,2]
[331960722,1720900246925,-1500.0,0.00025205,2]
[331960723,1720900246935,-500.0,0.00025205,2]
[331960724,1720900246945,-524.41,0.00025205,2]
[331960725,1720900246955,-153.275478,0.00025205,7]
[331960726,1720900246965,-151.0,0.00025205,7]
[331960727,1720900246975,-151.0,0.00025205,7]
[331960728,1720900246984,-500.0,0.00025205,2]
[331960729,1720900246994,-152.591274,0.00025205,7]
[331960730,1720900247003,-500.0,0.00025205,2]
[331960731,1720900247013,-151.0,0.00025205,7]
[331960732,1720900247023,-500.0,0.00025205,2]
[331960733,1720900247032,-318.15,0.00025205,7]
[331960734,1720900247042,-318.15,0.00025205,7]
[331960735,1720900247051,-571.91,0.00025205,2]
[331960736,1720900247061,-1948.32,0.00025205,2]
[331960737,1720900247070,-500.0,0.00025205,2]
[331960738,1720900247080,-500.0,0.00025205,2]
[331960739,1720900247089,-461.724374,0.00025205,7]
[331960740,1720900247098,-200.0,0.00025205,2]
[331960741,1720900247107,-461.724374,0.00025205,7]
[331960742,1720900247116,-500.0,0.00025205,2]
[331960743,1720900247125,-500.0,0.00025205,2]
[331960744,1720900247134,-151.0,0.00025205,7]
[331960745,1720900247144,-151.0,0.00025205,7]
[331960746,1720900247153,-501.07,0.00025205,2]
[331960747,1720900247163,-500.0,0.00025205,2]
[331960748,1720900247172,-500.0,0.00025205,2]
[331960749,1720900247182,-500.0,0.00025205,2]
[331960750,1720900247191,-523.54,0.00025205,2]
[331960751,1720900247200,-500.0,0.00025205,2]
[331960752,1720900247209,-500.0,0.00025205,2]
[331960753,1720900247218,-500.0,0.00025205,2]
[331960754,1720900247232,-11293.65,0.00025205,2]
[331960755,1720900247241,-301.53449734,0.00025205,2]
[331960756,1720900247253,-500.0,0.00025205,2]
[331960757,1720900247262,-229.49,0.00025205,2]
[331960758,1720900247270,-500.0,0.00025205,2]
[331960759,1720900247279,-500.0,0.00025205,2]
[331960760,1720900247288,-569.55700973,0.00025205,2]
[331960761,1720900247297,-1893.12,0.00025205,2]
[331960762,1720900247306,-500.0,0.00025205,2]
[331960763,1720900247315,-500.0,0.00025205,2]
[331960764,1720900247324,-500.0,0.00025205,2]
[331960765,1720900247333,-500.0,0.00025205,2]
[331960766,1720900247343,-500.0,0.00025205,2]
[331960767,1720900247352,-531.540738,0.00025205,2]
[331960768,1720900247361,-500.0,0.00025205,2]
[331960769,1720900247371,-856.41,0.00025205,2]
[331960770,1720900247380,-545.75,0.00025205,2]
[331960771,1720900247390,-500.0,0.00025205,2]
[331960772,1720900247399,-500.0,0.00025205,2]
[331960773,1720900247408,-515.6194065,0.00025205,2]
[331960774,1720900247417,-500.0,0.00025205,2]
[331960775,1720900247426,-616.37,0.00025205,2]
[331960776,1720900247435,-582.30361734,0.00025205,2]
[331960777,1720900247445,-500.0,0.00025205,2]
[331960778,1720900247454,-334.06,0.00025205,2]
[331960779,1720900247464,-500.0,0.00025205,2]
[331960780,1720900247474,-150.0,0.00025298,2]
[331960781,1720900247484,-357.01441578,0.00025351,2]
[331960782,1720900247494,-5181.91568065,0.00025364,2]
[331960783,1720900247503,-208.88287887,0.0002537,2]
[331960784,1720900247513,-151.0,0.00025469,7]
[331960785,1720900247523,-151.0,0.00025469,7]
[331960786,1720900247532,-151.0,0.00025469,7]
[331960787,1720900247542,-151.0,0.00025469,7]
[331960788,1720900247552,-151.0,0.00025469,7]
[331960789,1720900247561,-834.101087,0.00025469,7]
[331960790,1720900247571,-834.101087,0.00025469,7]
[331960791,1720900247580,-151.0,0.00025469,7]
[331960792,1720900247589,-372.55021,0.00025469,7]
[331960793,1720900247598,-372.55021,0.00025469,7]
[331960794,1720900247608,-8075.97412487,0.00025476,2]
[331960795,1720900247617,-500.0,0.00025479,2]
[331960796,1720900247626,-500.0,0.00025479,2]
[331960797,1720900247635,-500.0,0.00025479,2]
[331960798,1720900247645,-500.0,0.00025479,2]
[331960799,1720900247654,-500.0,0.00025479,2]
[331960800,1720900247663,-500.0,0.00025479,2]
[331960801,1720900247672,-310.05746639,0.00025479,2]
[331960802,1720900247681,-554.72,0.00025479,2]
[331960803,1720900247691,-500.0,0.00025479,2]
[331960804,1720900247700,-521.65316974,0.00025479,2]
[331960805,1720900247710,-168.21,0.00025479,2]
[331960806,1720900247720,-617.38,0.00025479,2]
[331960807,1720900247731,-500.0,0.00025479,2]
[331960808,1720900247740,-625.94,0.00025479,2]
[331960809,1720900247749,-500.0,0.00025479,2]
[331960810,1720900247837,-500.0,0.00025479,2]
[331960811,1720900247847,-500.0,0.00025479,2]
[331960812,1720900247856,-261.34069362,0.00025479,2]
[331960813,1720900247865,-500.0,0.00025479,2]
[331960814,1720900247874,-167.84,0.00025479,2]
[331960815,1720900247883,-521.25,0.00025479,2]
[331960816,1720900247892,-500.0,0.00025479,2]
[331960817,1720900247902,-500.0,0.00025479,2]
[331960818,1720900247913,-1021.18,0.00025479,2]
[331960819,1720900247923,-500.0,0.00025479,2]
[331960820,1720900247931,-500.0,0.00025479,2]
[331960821,1720900247940,-500.0,0.00025479,2]
[331960822,1720900247950,-697.74,0.00025479,2]
[331960823,1720900247959,-319.37,0.00025479,2]
[331960824,1720900247968,-500.0,0.00025479,2]
[331960825,1720900247980,-500.0,0.00025479,2]
[331960826,1720900247989,-1948.32,0.00025479,2]
[331960827,1720900247999,-500.0,0.00025479,2]
[331960828,1720900248008,-282.10763108,0.00025479,2]
[331960829,1720900248018,-500.0,0.00025479,2]
[331960830,1720900248027,-500.0,0.00025479,2]
[331960831,1720900248036,-501.07,0.00025479,2]
[331960832,1720900248045,-500.0,0.00025479,2]
[331960833,1720900248054,-500.0,0.00025479,2]
[331960834,1720900248063,-500.0,0.00025479,2]
[331960835,1720900248073,-500.0,0.00025479,2]
[331960836,1720900248082,-500.0,0.00025479,2]
[331960837,1720900248091,-11293.65,0.00025479,2]
[331960838,1720900248102,-500.0,0.00025479,2]
[331960839,1720900248111,-500.0,0.00025479,2]
[331960840,1720900248120,-1893.12,0.00025479,2]
[331960841,1720900248129,-500.0,0.00025479,2]
[331960842,1720900248140,-517.04,0.00025479,2]
[331960843,1720900248150,-500.0,0.00025479,2]
[331960844,1720900248160,-500.0,0.00025479,2]
[331960845,1720900248170,-856.41,0.00025479,2]
[331960846,1720900248179,-500.0,0.00025479,2]
[331960847,1720900248188,-616.37,0.00025479,2]
[331960848,1720900248199,-500.0,0.00025479,2]
[331960849,1720900248208,-4676.02238986,0.000255,2]
[331960850,1720900248217,-764.43027422,0.000255,2]
[331960851,1720900248228,-428.62808121,0.000255,2]
[331960852,1720900248237,-189.39290951,0.000255,2]
[331960853,1720900248247,-1000.0,0.000255,2]
[331960854,1720900248256,-151.0,0.000255,2]
[331960855,1720900248266,-151.0,0.000255,7]
[331960856,1720900248275,-271.615375,0.000255,7]
[331960857,1720900248285,-151.0,0.000255,7]
[331960858,1720900248295,-151.0,0.000255,7]
[331960859,1720900248304,-160.413996,0.000255,7]
[331960860,1720900248313,-151.0,0.000255,7]
[331960861,1720900248322,-151.0,0.000255,7]
[331960862,1720900248331,-151.0,0.000255,7]
[331960863,1720900248340,-151.0,0.000255,7]
[331960864,1720900248350,-151.0,0.000255,7]
[331960865,1720900248360,-151.0,0.000255,7]
[331960866,1720900248369,-226.0,0.00025532,2]
[331960867,1720900248379,-620.00163709,0.00025717,2]
[331960868,1720900248388,-620.00172073,0.00025717,2]
[331960869,1720900248398,-278.44190565,0.00025753,2]
[331960870,1720900248408,-500.0,0.00025753,2]
[331960871,1720900248417,-500.0,0.00025753,2]
[331960872,1720900248426,-210.54,0.00025753,2]
[331960873,1720900248436,-617.38,0.00025753,2]
[331960874,1720900248445,-151.0,0.00025753,7]